Cogmind - Beta 17 @@@ ROGUE MODE // 2026.08.10 @ 00:37:45 Player: Marc Result: Self-destructed Performance ------------- Evolutions (1) 500 Regions Visited (2) 400 Robots Destroyed (19) 95 Value Destroyed (366) 366 Prototype IDs (2) 40 Alien Tech Used (0) 0 Bonus (0) 0 TOTAL SCORE: 1401 Bonus ------- None Cogmind --------- Core Integrity 253/400 Matter 173/300 Energy 250/250 System Corruption 0% Temperature Cool (0) Movement Rolling (80) Location -9/Materials Parts ------- > --- POWER (1) -------- Ion Engine > --- PROPULSION (3) --- Wheel Wheel Flight Unit > --- UTILITY (3) ------ Terrain Scan Processor > --- WEAPON (2) ------- (None) > --- INVENTORY (5) ---- Small Storage Unit Peak State ------------ > --- POWER ------------ Ion Engine > --- PROPULSION ------- Wheel Wheel Flight Unit > --- UTILITY ---------- Structural Scanner Terrain Scan Processor > --- WEAPON ----------- Plasma Cutter > --- INVENTORY -------- Small Storage Unit [Rating: 9] Favorites ----------- Power Ion Engine Engine Ion Engine Propulsion Light Treads Treads Light Treads Wheel Wheel Flight Unit Flight Unit Utility Seismic Detector Device Seismic Detector Storage Small Storage Unit Processor Terrain Scan Processor Weapon Grenade Launcher Ballistic Gun Assault Rifle Launcher Grenade Launcher Special Weapon Plasma Cutter Build | -11 -10 -9 ------- Run | Yrd Mat Mat Slots Evolved 2 | . . 2 Power . | . . . Propulsion 1 | . . 1 Utility 1 | . . 1 Weapon . | . . . Parts Attached 17 | 6 3 8 Power 2 | 1 . 1 Engine 2 | 1 . 1 Core . | . . . Reactor . | . . . Propulsion 5 | 2 . 3 Treads 2 | 2 . . Leg . | . . . Wheel 2 | . . 2 Hover . | . . . Flight 1 | . . 1 Utility 5 | 1 2 2 Device 3 | . 2 1 Storage 1 | 1 . . Processor 1 | . . 1 Hackware . | . . . Protection . | . . . Artifact . | . . . Weapon 5 | 2 1 2 Energy Gun . | . . . Energy Cannon . | . . . Ballistic Gun 2 | 2 . . Ballistic Cannon . | . . . Launcher 1 | . 1 . Special Weapon 2 | . . 2 Impact Weapon . | . . . Slashing Weapon . | . . . Piercing Weapon . | . . . Special Melee Weapon . | . . . Unidentified Prototypes . | . . . Parts Lost 10 | . . 10 Power 1 | . . 1 Propulsion 2 | . . 2 Utility 3 | . . 3 Weapon 4 | . . 4 Highest Loss Streak 7 | . . 7 To Critical Strikes . | . . . Average Backups 2 | 1 2 1 Power . | . . . Propulsion . | . . . Utility . | . . 1 Weapon 1 | . 1 . Tool/Special . | . . . Unused Backups . | . . . Power . | . . . Propulsion . | . . . Utility . | . . . Weapon . | . . . Tool/Special . | . . . Average Slot Usage (%) 66 | . 69 54 Engine 12 | . 13 8 Treads 18 | . 22 6 Wheel 1 | . . 7 Flight 1 | . . 5 Device 15 | . 16 13 Storage 5 | . 6 . Processor 1 | . . 4 Ballistic Gun 2 | . 2 1 Launcher 6 | . 7 1 Peak Build Rating 9 | 6 6 9 Average Rating 5 | 3 4 5 On Entrance 4 | . 6 6 Avg Prop Armor Cover (%) 5 | . . 5 Naked Turns . | . . . Heaviest Build 14 | 14 14 11 Greatest Support 40 | 40 40 40 Greatest Overweight (x) 4 | 1 4 1 Average Overweight (x) . | . . . Largest Inventory Capacity 8 | 8 8 5 Average Capacity 6 | 6 6 5 Most Carried 7 | 5 7 3 Average Carried 2 | 1 2 1 Final Capacity 8 | 8 5 5 Final Carried 2 | . 2 1 Class Distribution -------------------- 91% | Mutant 8% | Scavenger-Mutant Dominant Class ---------------- Mutant | -10/Materials Mutant | -9/Materials Resources | -11 -10 -9 ----------- Run | Yrd Mat Mat Matter Collected 530 | 161 254 115 Remotely . | . . . Salvage Created 283 | . 172 111 Parts 25 | . 21 4 Haulers Intercepted . | . . . Recyclers Shooed . | . . . Parts Field Recycled . | . . . Retrieved Matter . | . . . Parts Self-Destructed . | . . . Prevented . | . . . Parts Restored . | . . . Kills | -11 -10 -9 ------- Run | Yrd Mat Mat Combat Hostiles Destroyed 14 | . 10 4 Guns 3 | . . 3 Cannons 1 | . . 1 AOE 10 | . 10 . Classes Destroyed 6 | . 5 1 Worker 1 | . 1 . Builder 1 | . 1 . Watcher 3 | . 2 1 Swarmer 8 | . 6 2 Grunt 5 | . 4 1 Brawler 1 | . . 1 Best Kill Streak 6 | . 6 3 Combat Bots Only 6 | . 6 2 Max Kills in Single Turn 2 | . 2 1 Gunslinging . | . . . Exploded 2 | . 2 . Melee . | . . . Uniques/NPCs Destroyed . | . . . Combat | -11 -10 -9 -------- Run | Yrd Mat Mat Hostile Shots Fired 115 | . 29 86 Missed 35 | . 9 26 Hits 80 | . 20 60 Projectile 80 | . 20 60 Damage Taken 908 | . 341 567 Core 268 | . 121 147 Absorbed by Shields . | . . . Core Remaining (%) 75 | 100 51 . Volleys Fired 44 | 1 17 26 Largest 2 | 2 2 1 Hottest 40 | 40 40 30 Shots Fired 46 | 2 18 26 Gun 19 | 2 2 15 Cannon . | . . . Launcher 18 | . 16 2 Special 9 | . . 9 Kinetic 19 | 2 2 15 Thermal 9 | . . 9 Explosive 18 | . 16 2 Electromagnetic . | . . . Robot Hit Streak 7 | . 4 7 Robot Miss Streak 3 | 2 1 3 Penetration Max . | . . . Secondary Targets . | . . . Shots Hit Robots 25 | . 9 16 Core Hits 29 | . 21 8 Critical Kills . | . . . Critical Parts Destroyed . | . . . Critical Strikes 1 | . . 1 Sever 1 | . . 1 Melee Attacks . | . . . Impact . | . . . Slashing . | . . . Piercing . | . . . Sneak Attacks . | . . . Combat Hostiles . | . . . Follow-up Attacks . | . . . Damage Inflicted 1048 | . 769 279 Guns 136 | . 24 112 Cannons . | . . . Explosions 857 | . 745 112 Melee . | . . . Ramming . | . . . Kinetic 136 | . 24 112 Thermal 55 | . . 55 Explosive 857 | . 745 112 Electromagnetic . | . . . Impact . | . . . Slashing . | . . . Piercing . | . . . Highest Corruption 2 | . 2 . Average Corruption 1 | . 1 . Corruption Purged . | . . . Corruption Blocked . | . . . Effects 6 | . 6 . Message Errors 1 | . 1 . Heat Flow Errors 1 | . 1 . Parts Rejected 1 | . 1 . Data Loss (minor) 2 | . 2 . Alerts 1 | . 1 . Overload Shots . | . . . Overflow Damage . | . . . Projectiles . | . . . Explosions . | . . . Melee . | . . . Knockbacks . | . . . Impact . | . . . Kinetic . | . . . Secondary . | . . . Self-Inflicted Damage 152 | . 152 . Shots 6 | . 6 . Rammed . | . . . Targets Rammed . | . . . Kicked . | . . . Crushed . | . . . Highest Temperature 147 | . 147 . Average Temperature 58 | . 58 . Received Heat Transfer 183 | . 21 162 Siege Activations . | . . . Martial Activations . | . . . Shielding Activations . | . . . Robots Disrupted . | . . . Combat Hostiles . | . . . Robots Corrupted . | . . . Combat Hostiles . | . . . Parts Fried . | . . . Impact Corruptions . | . . . Robots Melted . | . . . Combat Hostiles . | . . . Parts Melted . | . . . Heat Transferred 185 | . . 185 Parts Sabotaged . | . . . Parts Stolen . | . . . Parts Stripped . | . . . Power Chain Reactions . | . . . Alert | -11 -10 -9 ------- Run | Yrd Mat Mat Maximum Alert Level . | . . . Low Security (%) 100 | 100 100 100 Level 1 . | . . . Level 2 . | . . . Level 3 . | . . . Level 4 . | . . . Level 5 . | . . . High Security . | . . . Max Security . | . . . Peak Influence 167 | . 167 41 Initial . | . . . Average 36 | . 45 9 Influence Increases 474 | . 353 121 Destroy 0b10 Robot/C 280 | . 200 80 Destroy 0b10 Robot/NC 25 | . 20 5 Destroy Leader 66 | . 44 22 Destroy Structure 103 | . 89 14 Influence Decreases 474 | . 353 121 Time Decay 302 | . 242 60 Lost Part 61 | . . 61 Purge Threat 111 | . 111 . Squads Dispatched 2 | . 1 1 Investigation 1 | . 1 . Extermination . | . . . Reinforcement 1 | . . 1 Assault . | . . . Garrison . | . . . Intercept . | . . . Searches Triggered . | . . . Construction Impeded . | . . . Haulers Reinforced . | . . . Active Scanning Responses . | . . . Cargo Convoy Interrupts . | . . . Stealth | -11 -10 -9 --------- Run | Yrd Mat Mat Distress Signals 1 | . . 1 Communications Jammed . | . . . Distress Signals . | . . . Times Spotted 26 | . 13 13 Peak Tracking Total 6 | . 6 6 Tactical Retreats . | . . . Traps | -11 -10 -9 ------- Run | Yrd Mat Mat Traps Triggered 7 | . 7 . Indirectly . | . . . Trap Hack Attempts . | . . . Triggered . | . . . Disarmed . | . . . Reprogrammed . | . . . Reused . | . . . Traps Extracted . | . . . Installed . | . . . Triggered . | . . . Machines | -11 -10 -9 ---------- Run | Yrd Mat Mat Machines Disabled . | . . . Max in Single Turn . | . . . Machines Repaired . | . . . Machines Dismantled . | . . . Machines Sabotaged . | . . . Overloaded Fab Kills . | . . . Hacking | -11 -10 -9 --------- Run | Yrd Mat Mat Machines Accessed 5 | . 4 1 Terminals 5 | . 4 1 Fabricators . | . . . Repair Stations . | . . . Recycling Units . | . . . Scanalyzers . | . . . Garrison Access . | . . . Total Hacks 19 | . 17 2 Successful 8 | . 8 . Failed 11 | . 9 2 Catastrophic 1 | . 1 . Database Lockouts . | . . . Manual 12 | . 10 2 Terminals 19 | . 17 2 Fabricators . | . . . Repair Stations . | . . . Recycling Units . | . . . Scanalyzers . | . . . Garrison Access . | . . . Terminal Hacks 8 | . 8 . Record 1 | . 1 . Prototype ID Bank 1 | . 1 . Emergency Access Points 1 | . 1 . Alert Level 2 | . 2 . Unreport Threat 1 | . 1 . Locate Traps 1 | . 1 . Dispatch Records 1 | . 1 . Fabricator Hacks . | . . . Repair Station Hacks . | . . . Recycling Unit Hacks . | . . . Scanalyzer . | . . . Garrison Access Hacks . | . . . Unauthorized Hacks . | . . . Terminals . | . . . Fabricators . | . . . Repair Stations . | . . . Recycling Units . | . . . Scanalyzers . | . . . Garrison Access . | . . . Data Cores Recovered . | . . . Used . | . . . Hacking Detections 4 | . 3 1 Full Trace Events 2 | . 2 . Feedback Events . | . . . Feedback Blocked . | . . . Robot Schematics Acquired . | . . . Robots Built . | . . . Authchips . | . . . Time . | . . . Total Robot Build Rating . | . . . Part Schematics Acquired . | . . . Parts Built . | . . . Authchips . | . . . Time . | . . . Total Part Build Rating . | . . . Part Studies Acquired . | . . . Parts Repaired . | . . . Time . | . . . Parts Recycled . | . . . Recycled Matter . | . . . Retrieved Matter . | . . . Retrieved Components . | . . . Parts Scanalyzed . | . . . Part Schematics Acquired . | . . . Parts Damaged . | . . . Bothacking | -11 -10 -9 ------------ Run | Yrd Mat Mat Used RIF Installer . | . . . Robots Hacked . | . . . Non-combat . | . . . Combat . | . . . Robot Hacks Applied . | . . . Relay Couplers Released . | . . . Fabnet Peak Effective % . | . . . Robots Rewired . | . . . Allies Hacked . | . . . Hacks Repelled . | . . . Allies | -11 -10 -9 -------- Run | Yrd Mat Mat Total Allies . | . . . Largest Group . | . . . Highest-Rated Group . | . . . Highest-Rated Ally . | . . . Total Orders . | . . . Ally Attacks . | . . . Total Damage . | . . . Kills . | . . . Allies Corrupted . | . . . Allies Melted . | . . . Intel | -11 -10 -9 ------- Run | Yrd Mat Mat Active Infowar (turns) 732 | . 552 180 Structural 91 | . . 91 Seismic 619 | . 542 77 ECM 542 | . 453 89 Robot Analysis Total . | . . . Derelict Logs Recovered . | . . . Drone Launches . | . . . Drone Recoveries . | . . . Exploration | -11 -10 -9 ------------- Run | Yrd Mat Mat Turns Passed 1131 | 58 859 214 Spaces Moved 658 | 43 481 134 Core 60 | 22 30 8 Treads 498 | 21 451 26 Legs . | . . . Wheels 82 | . . 82 Hover . | . . . Flight 18 | . . 18 Fastest Speed 40 | 50 100 40 Average Speed 141 | 104 158 93 Slowest Speed 250 | 160 250 160 Overloaded Moves . | . . . Propulsion Burnouts . | . . . Robots Hopped . | . . . Potential Cave-ins . | . . . Cave-ins Triggered . | . . . Exploration Rate (%) 34 | 4 83 17 Regions Visited 2 Branch Regions . Pre-discovered Areas . | . . . Known Exits Taken . | . . . Unknown Exits Taken 2 | 1 1 . Scrap Searched . | . . . Spaces Dug . | . . . Terrain Destroyed 126 | . 114 12 Melee . | . . . Projectile . | . . . AOE 126 | . 114 12 Terrain Rammed . | . . . Walls Destroyed . | . . . Machines Disabled . | . . . Actions | -11 -10 -9 --------- Run | Yrd Mat Mat Total 801 | 54 561 186 Wait 44 | . 36 8 Move 656 | 42 480 134 Hop . | . . . Pick Up 25 | 5 12 8 Fast Attach 1 | 1 . . Attach 26 | 5 12 9 Detach 3 | . 3 . Swap . | . . . Drop 1 | . 1 . Fire 44 | 1 17 26 Melee . | . . . Ram . | . . . Kick . | . . . Crush . | . . . Escape Stasis . | . . . Rewire . | . . . Trap . | . . . Miscellaneous 1 | . . 1 Route ------- -11/Scrapyard -10/Materials (discovered 3 exits: *Mat x2 / [*Min]) -9/Materials History --------- Turn | Location | Event 6 | -11/Scrapyard | Discovered new exit (range 16) 59 | -11/Scrapyard | Entered Materials 302 | -10/Materials | Build established: Mutant 337 | -10/Materials | Discovered new exit (range 14) 417 | -10/Materials | Discovered new exit (range 10) 559 | -10/Materials | Discovered new exit (range 16) 918 | -10/Materials | Entered another Materials area 918 | -9/Materials | Evolved 2 slots: Propulsion x1, Utility x1 1038 | -9/Materials | Lost 7 parts (1p2n2u2w) 1132 | -9/Materials | Self-destructed Last Messages --------------- 01060_ R-06 Scavenger collects Wheel. 01060_ K-01 Serf collects debris. 01064_ Dismantling Terminal with Plasma Cutter. 01065_ R-06 Scavenger collects Terrain Scan Processor. 01067_ Connecting with Terminal... 01067_ Current location identified: Materials 01067_ K-01 Serf collects debris. 01081_ Plasma Cutter destroyed. 01083_ T-07 Excavator is excavating. 01115_ Acquired Plasma Cutter. 01117_ K-01 Serf collects debris. 01120_ O-16 Technician sends out distress signal. 01120_ O-16 Technician: "IFF HANDSHAKE FAILED. SECURING TERMINAL." 01122_ ALERT: Hostiles spotted, dispatching reinforcements to Terminal M007. 01124_ Structural Scanner destroyed. 01131_ Plasma Cutter destroyed. Map ----- +----------------------------------------------------+ | | | | | | | | | | | | | | | | | ?????????????????????????????????????? | | ?????????????????????????????????????? | | ?????????????????????????????????????? | | ?????????????????????????????????????? | | ?????????????????????????????????????? | | ?????????? # ???????????????????? | | ????????? ###+###???????????????????? | | ?????????+## ##???????????????????? | | ????????? ?????????????????????? | | ??????????? T ?????????????????????? | | ???????????# #????????????????????? | | ???????????## #######???????????????? | | ???????????##s #######???????????????? | | ???????????## # ##???????????????? | | ???????????## # ###########??????? | | ???????????## + ###########??????? | | ???????????## # # ##??????? | | ???????????##@ # + """ ##??????? | | ??????????? ss ###### """ ##??????? | | ????????? # # """ ##??????? | | ????## o # ^ + ######### | | ????## # # """ ######### | | ????## "T"? # # """ ! # | | ????## """? # #| """ # """ """ | | ????######?## "Y" # # """ """ | | ????######?## """ ########+# """ """ | | ???????????####### # # # | | ??????????? # # ???? # # | | ???????????????? + + ???? # # | | ???????????????? # # ???? # # | | ???????????????? # # ???? # ######+## | | ???????????????? # # # ##### | | ???????????????? # ######## ##### | | ????????????????## ## # | | ????????????????## ## ######## ## | | ????????????????## ## ######## ## | | ??????????####??## ## ########/## | | ??????????######## ######+# ! # | | ?????????? # ## T # + | | ?????????? # ## #/ # | | ?????????? # ## # """ # | | ?????????? # # # """"" # | +----------------------------------------------------+ Best States ------------- Heat Dissipation 28 Energy Generation 10 Energy Capacity 250 Matter Stores 202 Matter Capacity 300 Sight Range 16 Terrain Scan Density 85 ECM Strength 1 Evasion (%) 50 Recoil Reduction 2 Item Schematics ----------------- None Robot Schematics ------------------ None Fabricated ------------ Nothing Repaired ---------- Nothing Studied --------- None Alien Tech Used ----------------- None Achievements -------------- None Challenges ------------ None Game ------ Seed GravmagColdField Manual? 0 Play Time 00:14:03 Cumulative 12.1 hours Start 2026.08.10 @ 00:22:29 End 2026.08.10 @ 00:37:45 Sessions 1 Manual Loads 0 Difficulty Rogue Special Mode None Game No. 33 Rogue 26 Adventurer 7 Explorer 0 Win Type - Total 0 Types 0/0/0/0/0/0/0/0/0/0 Lore% 9 Gallery% 16 Achievement% 13 Wizard Run 0 Options --------- Layout 1 ASCII 0 Keyboard 0 Movement Mouse Keybinds 0 Fullscreen 1 Font 24/Smallcaps Map View 50x35 Zoom Use 0% Tactical HUD 1 Map Filters NONE Filters NONE Steam 1 RUN: f0abc50e-108e-4194-9cd6-056876bf1145